fUSD/lending_fUSD_20241107
["ID","MTS","AMOUNT","RATE_DAILY","PERIOD"]
[341578480,1731006661095,-500.0,0.0002849,2]
[341578481,1731006661104,-500.0,0.0002849,2]
[341578482,1731006661113,-500.0,0.0002849,2]
[341578483,1731006661123,-500.0,0.0002849,2]
[341578484,1731006661132,-500.0,0.0002849,2]
[341578485,1731006661141,-500.0,0.0002849,2]
[341578486,1731006661151,-500.0,0.0002849,2]
[341578487,1731006661160,-500.0,0.0002849,2]
[341578488,1731006661169,-500.0,0.0002849,2]
[341578489,1731006661179,-500.0,0.0002849,2]
[341578490,1731006661188,-500.0,0.0002849,2]
[341578491,1731006661196,-500.0,0.0002849,2]
[341578492,1731006661206,-500.0,0.0002849,2]
[341578493,1731006661215,-500.0,0.0002849,2]
[341578494,1731006661224,-500.0,0.0002849,2]
[341578495,1731006661232,-500.0,0.0002849,2]
[341578496,1731006661242,-500.0,0.0002849,2]
[341578497,1731006661251,-500.0,0.0002849,2]
[341578498,1731006661260,-500.0,0.0002849,2]
[341578499,1731006661269,-500.0,0.0002849,2]
[341578500,1731006661278,-179.42133984,0.0002849,2]
[341578501,1731006661290,-157.56512305,0.0002849,2]
[341578502,1731006661299,-553.71,0.0002849,2]
[341578503,1731006661309,-636.4375476,0.0002849,2]
[341578504,1731006661318,-684.89,0.0002849,2]
[341578505,1731006661327,-506.13,0.0002849,2]
[341578506,1731006661336,-500.0,0.0002849,2]
[341578507,1731006661346,-500.0,0.0002849,2]
[341578508,1731006661355,-500.0,0.0002849,2]
[341578509,1731006661365,-500.0,0.0002849,2]
[341578510,1731006661374,-500.0,0.0002849,2]
[341578511,1731006661383,-500.0,0.0002849,2]
[341578512,1731006661393,-500.0,0.0002849,2]
[341578513,1731006661402,-500.0,0.0002849,2]
[341578514,1731006661411,-500.0,0.0002849,2]
[341578515,1731006661421,-558.2,0.0002849,2]
[341578516,1731006661430,-500.0,0.0002849,2]
[341578517,1731006661439,-500.0,0.0002849,2]
[341578518,1731006661448,-500.0,0.0002849,2]
[341578519,1731006661457,-508.32,0.0002849,2]
[341578520,1731006661467,-500.0,0.0002849,2]
[341578521,1731006661476,-500.0,0.0002849,2]
[341578522,1731006661485,-544.1,0.0002849,2]
[341578523,1731006661495,-522.86,0.0002849,2]
[341578524,1731006661504,-500.0,0.0002849,2]
[341578525,1731006661514,-500.0,0.0002849,2]
[341578526,1731006661524,-500.0,0.0002849,2]
[341578527,1731006661538,-500.0,0.0002849,2]
[341578528,1731006661547,-504.11525407,0.0002849,2]
[341578529,1731006661557,-500.0,0.0002849,2]
[341578530,1731006661568,-500.0,0.0002849,2]
[341578531,1731006661577,-1000.0,0.0002849,10]
[341578532,1731006661587,-841.18,0.0002849,2]
[341578533,1731006661596,-500.0,0.0002849,2]
[341578534,1731006661606,-500.0,0.0002849,2]
[341578535,1731006661616,-552.00832613,0.0002849,2]
[341578536,1731006661625,-500.0,0.0002849,2]
[341578537,1731006661635,-500.0,0.0002849,2]
[341578538,1731006661647,-500.0,0.0002849,2]
[341578539,1731006661658,-511.76957957,0.0002849,2]
[341578540,1731006661667,-854.85,0.0002849,2]
[341578541,1731006661677,-500.0,0.0002849,2]
[341578542,1731006661687,-500.0,0.0002849,2]
[341578543,1731006661697,-500.0,0.0002849,2]
[341578544,1731006661707,-500.0,0.0002849,2]
[341578545,1731006661716,-500.0,0.0002849,2]
[341578546,1731006661726,-591.72397867,0.0002849,2]
[341578547,1731006661736,-1405.72,0.0002849,2]
[341578548,1731006661745,-1010.28,0.0002849,2]
[341578549,1731006661755,-500.0,0.0002849,2]
[341578550,1731006661764,-500.0,0.0002849,2]
[341578551,1731006661773,-1474.85,0.0002849,2]
[341578552,1731006661785,-588.42,0.0002849,2]
[341578553,1731006661794,-500.0,0.0002849,2]
[341578554,1731006661803,-500.0,0.0002849,2]
[341578555,1731006661813,-506.3616078,0.0002849,2]
[341578556,1731006661822,-500.0,0.0002849,2]
[341578557,1731006661831,-500.0,0.0002849,2]
[341578558,1731006661841,-500.0,0.0002849,2]
[341578559,1731006661851,-500.0,0.0002849,2]
[341578560,1731006661860,-500.0,0.0002849,2]
[341578561,1731006661869,-1559.87,0.0002849,2]
[341578562,1731006661879,-708.79,0.0002849,2]
[341578563,1731006661888,-1346.76,0.0002849,2]
[341578564,1731006661898,-500.0,0.0002849,2]
[341578565,1731006661909,-1075.1,0.0002849,2]
[341578566,1731006661918,-500.0,0.0002849,2]
[341578567,1731006661928,-500.0,0.0002849,2]
[341578568,1731006661938,-690.67,0.0002849,2]
[341578569,1731006661947,-772.82,0.0002849,2]
[341578570,1731006661956,-500.0,0.0002849,2]
[341578571,1731006661965,-500.0,0.0002849,2]
[341578572,1731006661975,-500.0,0.0002849,2]
[341578573,1731006661983,-500.0,0.0002849,2]
[341578574,1731006661992,-815.4,0.0002849,2]
[341578575,1731006662003,-671.17,0.0002849,2]
[341578576,1731006662012,-539.78,0.0002849,2]
[341578577,1731006662022,-553.21,0.0002849,2]
[341578578,1731006662035,-601.53,0.0002849,2]
[341578579,1731006662044,-500.0,0.0002849,2]
[341578580,1731006662053,-500.0,0.0002849,2]
[341578581,1731006662063,-500.0,0.0002849,2]
[341578582,1731006662072,-778.48,0.0002849,2]
[341578583,1731006662082,-500.0,0.0002849,2]
[341578584,1731006662092,-500.0,0.0002849,2]
[341578585,1731006662102,-500.0,0.0002849,2]
[341578586,1731006662112,-986.18,0.0002849,2]
[341578587,1731006662122,-925.38,0.0002849,2]
[341578588,1731006662131,-500.0,0.0002849,2]
[341578589,1731006662140,-538.40359559,0.0002849,2]
[341578590,1731006662150,-849.38,0.0002849,2]
[341578591,1731006662159,-884.51,0.0002849,2]
[341578592,1731006662169,-605.79633836,0.0002849,2]
[341578593,1731006662179,-1452.1,0.0002849,2]
[341578594,1731006662188,-500.0,0.0002849,2]
[341578595,1731006662197,-1021.71,0.0002849,2]
[341578596,1731006662207,-795.12,0.0002849,2]
[341578597,1731006662216,-500.0,0.0002849,2]
[341578598,1731006662226,-500.0,0.0002849,2]
[341578599,1731006662236,-500.0,0.0002849,2]
[341578600,1731006662246,-946.45,0.0002849,2]
[341578601,1731006662256,-559.8,0.0002849,2]
[341578602,1731006662265,-500.0,0.0002849,2]
[341578603,1731006662275,-500.0,0.0002849,2]
[341578604,1731006662287,-500.0,0.0002849,2]
[341578605,1731006662297,-500.0,0.0002849,2]
[341578606,1731006662307,-500.0,0.0002849,2]
[341578607,1731006662316,-567.63,0.0002849,2]
[341578608,1731006662326,-861.73,0.0002849,2]
[341578609,1731006662335,-500.0,0.0002849,2]
[341578610,1731006662345,-500.0,0.0002849,2]
[341578611,1731006662354,-1541.33,0.0002849,2]
[341578612,1731006662364,-1203.52,0.0002849,2]
[341578613,1731006662373,-893.94,0.0002849,2]
[341578614,1731006662382,-500.0,0.0002849,2]
[341578615,1731006662392,-500.0,0.0002849,2]
[341578616,1731006662401,-500.0,0.0002849,2]
[341578617,1731006662410,-564.17,0.0002849,2]
[341578618,1731006662419,-875.63,0.0002849,2]
[341578619,1731006662428,-500.0,0.0002849,2]
[341578620,1731006662437,-1115.47,0.0002849,2]
[341578621,1731006662446,-500.0,0.0002849,2]
[341578622,1731006662456,-625.8,0.0002849,2]
[341578623,1731006662465,-1251.93,0.0002849,2]
[341578624,1731006662475,-954.67,0.0002849,2]
[341578625,1731006662485,-742.87,0.0002849,2]
[341578626,1731006662494,-500.0,0.0002849,2]
[341578627,1731006662503,-1179.63,0.0002849,2]
[341578628,1731006662512,-508.78884191,0.0002849,2]
[341578629,1731006662522,-1413.66,0.0002849,2]
[341578630,1731006662534,-699.24,0.0002849,2]
[341578631,1731006662544,-925.92,0.0002849,2]
[341578632,1731006662554,-576.78,0.0002849,2]
[341578633,1731006662569,-1328.46,0.0002849,2]
[341578634,1731006662578,-642.75,0.0002849,2]
[341578635,1731006662587,-1064.03,0.0002849,2]
[341578636,1731006662597,-500.0,0.0002849,2]
[341578637,1731006662606,-504.18,0.0002849,2]
[341578638,1731006662615,-816.77,0.0002849,2]
[341578639,1731006662625,-835.37,0.0002849,2]
[341578640,1731006662634,-529.86997907,0.0002849,2]
[341578641,1731006662645,-500.0,0.0002849,2]
[341578642,1731006662655,-1231.86,0.0002849,2]
[341578643,1731006662664,-1206.38,0.0002849,2]
[341578644,1731006662673,-833.23,0.0002849,2]
[341578645,1731006662683,-1475.12,0.0002849,2]
[341578646,1731006662692,-972.6,0.0002849,2]
[341578647,1731006662703,-500.0,0.0002849,2]
[341578648,1731006662712,-678.17,0.0002849,2]
[341578649,1731006662722,-500.0,0.0002849,2]
[341578650,1731006662732,-500.0,0.0002849,2]
[341578651,1731006662742,-2570.94,0.0002849,2]
[341578652,1731006662751,-1229.48,0.0002849,2]
[341578653,1731006662760,-896.88,0.0002849,2]
[341578654,1731006662770,-500.0,0.0002849,2]
[341578655,1731006662781,-506.98515162,0.0002849,2]
[341578656,1731006662791,-500.0,0.0002849,2]
[341578657,1731006662801,-961.1,0.0002849,2]
[341578658,1731006662811,-500.0,0.0002849,2]
[341578659,1731006663009,-1463.27,0.0002849,2]
[341578660,1731006663034,-3143.16,0.0002849,2]
[341578661,1731006663045,-500.0,0.0002849,2]
[341578662,1731006663054,-500.0,0.0002849,2]
[341578663,1731006663064,-726.47,0.0002849,2]
[341578664,1731006663074,-500.0,0.0002849,2]
[341578665,1731006663083,-500.0,0.0002849,2]
[341578666,1731006663093,-4690.82,0.0002849,2]
[341578667,1731006663103,-550.48,0.0002849,2]
[341578668,1731006663113,-500.0,0.0002849,2]
[341578669,1731006663123,-2121.04,0.0002849,2]
[341578670,1731006663133,-500.0,0.0002849,2]
[341578671,1731006663143,-2520.06,0.0002849,2]
[341578672,1731006663152,-500.0,0.0002849,2]
[341578673,1731006663162,-500.0,0.0002849,2]
[341578674,1731006663172,-1085.49,0.0002849,2]
[341578675,1731006663182,-880.83,0.0002849,2]
[341578676,1731006663192,-500.0,0.0002849,2]
[341578677,1731006663202,-500.0,0.0002849,2]
[341578678,1731006663211,-500.0,0.0002849,2]
[341578679,1731006663221,-943.13,0.0002849,2]
[341578680,1731006663231,-500.0,0.0002849,2]
[341578681,1731006663240,-960.56,0.0002849,2]
[341578682,1731006663250,-775.37,0.0002849,2]
[341578683,1731006663259,-500.0,0.0002849,2]
[341578684,1731006663269,-1421.51,0.0002849,2]
[341578685,1731006663279,-500.0,0.0002849,2]
[341578686,1731006663291,-500.0,0.0002849,2]
[341578687,1731006663299,-500.0,0.0002849,2]
[341578688,1731006663309,-500.0,0.0002849,2]
[341578689,1731006663319,-1153.57,0.0002849,2]
[341578690,1731006663329,-511.45306559,0.0002849,2]
[341578691,1731006663339,-500.0,0.0002849,2]
[341578692,1731006663348,-500.0,0.0002849,2]
[341578693,1731006663357,-604.83,0.0002849,2]
[341578694,1731006663367,-569.26,0.0002849,2]
[341578695,1731006663377,-500.0,0.0002849,2]
[341578696,1731006663387,-500.0,0.0002849,2]
[341578697,1731006663396,-500.0,0.0002849,2]
[341578698,1731006663405,-500.0,0.0002849,2]
[341578699,1731006663415,-500.0,0.0002849,2]
[341578700,1731006663424,-645.83,0.0002849,2]
[341578701,1731006663434,-500.0,0.0002849,2]
[341578702,1731006663444,-500.0,0.0002849,2]
[341578703,1731006663454,-779.11,0.0002849,2]
[341578704,1731006663463,-599.12,0.0002849,2]
[341578705,1731006663472,-500.0,0.0002849,2]
[341578706,1731006663482,-500.0,0.0002849,2]
[341578707,1731006663491,-1042.79,0.0002849,2]
[341578708,1731006663502,-151.0,0.0002849,7]
[341578709,1731006663512,-500.0,0.0002849,2]
[341578710,1731006663522,-815.39,0.0002849,2]
[341578711,1731006663535,-500.0,0.0002849,2]
[341578712,1731006663545,-500.0,0.0002849,2]
[341578713,1731006663554,-1276.42,0.0002849,2]
[341578714,1731006663565,-1160.45,0.0002849,2]
[341578715,1731006663577,-500.0,0.0002849,2]
[341578716,1731006663586,-500.0,0.0002849,2]
[341578717,1731006663596,-991.95,0.0002849,2]
[341578718,1731006663608,-500.0,0.0002849,2]
[341578719,1731006663618,-500.0,0.0002849,2]
[341578720,1731006663627,-500.0,0.0002849,2]
[341578721,1731006663637,-500.0,0.0002849,2]
[341578722,1731006663647,-500.0,0.0002849,2]
[341578723,1731006663658,-2096.29,0.0002849,2]
[341578724,1731006663667,-151.0,0.0002849,7]
[341578725,1731006663677,-500.0,0.0002849,2]
[341578726,1731006663691,-1112.02,0.0002849,2]
[341578727,1731006663701,-546.77,0.0002849,2]
[341578728,1731006663713,-235.977363,0.0002849,7]
[341578729,1731006663723,-235.977363,0.0002849,7]
[341578730,1731006663734,-507.01,0.0002849,2]
[341578731,1731006663743,-500.0,0.0002849,2]
[341578732,1731006663754,-500.0,0.0002849,2]
[341578733,1731006663764,-1440.6,0.0002849,2]
[341578734,1731006663775,-1299.27,0.0002849,2]
[341578735,1731006663786,-634.36,0.0002849,2]
[341578736,1731006663796,-1237.47,0.0002849,2]
[341578737,1731006663807,-500.0,0.0002849,2]
[341578738,1731006663816,-1400.48,0.0002849,2]
[341578739,1731006663826,-880.63,0.0002849,2]
[341578740,1731006663836,-1189.25,0.0002849,2]
[341578741,1731006663845,-151.0,0.0002849,7]
[341578742,1731006663855,-500.0,0.0002849,2]
[341578743,1731006663864,-151.0,0.0002849,7]
[341578744,1731006663874,-500.0,0.0002849,2]
[341578745,1731006663884,-963.961596,0.0002849,7]
[341578746,1731006663894,-963.961596,0.0002849,7]
[341578747,1731006663904,-500.0,0.0002849,2]
[341578748,1731006663914,-740.28,0.0002849,2]
[341578749,1731006663924,-500.0,0.0002849,2]
[341578750,1731006663934,-500.0,0.0002849,2]
[341578751,1731006663943,-151.0,0.0002849,7]
[341578752,1731006663953,-165.51486,0.0002849,7]
[341578753,1731006663963,-165.51486,0.0002849,7]
[341578754,1731006663973,-151.0,0.0002849,7]
[341578755,1731006663983,-502.99750057,0.0002849,2]
[341578756,1731006663992,-500.0,0.0002849,2]
[341578757,1731006664002,-500.0,0.0002849,2]
[341578758,1731006664012,-860.23,0.0002849,2]
[341578759,1731006664022,-500.0,0.0002849,2]
[341578760,1731006664032,-500.0,0.0002849,2]
[341578761,1731006664044,-500.0,0.0002849,2]
[341578762,1731006664053,-733.25,0.0002849,2]
[341578763,1731006664063,-500.0,0.0002849,2]
[341578764,1731006664072,-2079.61,0.0002849,2]
[341578765,1731006664082,-500.0,0.0002849,2]
[341578766,1731006664092,-500.0,0.0002849,2]
[341578767,1731006664101,-1402.17,0.0002849,2]
[341578768,1731006664111,-919.14,0.0002849,2]
[341578769,1731006664121,-564.55,0.0002849,2]
[341578770,1731006664131,-500.0,0.0002849,2]
[341578771,1731006664141,-500.0,0.0002849,2]
[341578772,1731006664151,-500.0,0.0002849,2]
[341578773,1731006664160,-500.0,0.0002849,2]
[341578774,1731006664170,-500.0,0.0002849,2]
[341578775,1731006664180,-500.0,0.0002849,2]
[341578776,1731006664190,-1687.74,0.0002849,2]
[341578777,1731006664199,-151.0,0.0002849,7]
[341578778,1731006664209,-500.0,0.0002849,2]
[341578779,1731006664219,-869.33,0.0002849,2]
[341578780,1731006664228,-151.0,0.0002849,7]
[341578781,1731006664238,-6466.8,0.0002849,2]
[341578782,1731006664248,-500.0,0.0002849,2]
[341578783,1731006664258,-500.0,0.0002849,2]
[341578784,1731006664268,-500.0,0.0002849,2]
[341578785,1731006664278,-775.1,0.0002849,2]
[341578786,1731006664290,-512.58643515,0.0002849,2]
[341578787,1731006664301,-1751.76,0.0002849,2]
[341578788,1731006664310,-805.76,0.0002849,2]
[341578789,1731006664320,-717.44,0.0002849,2]
[341578790,1731006664330,-587.77275976,0.0002849,2]
[341578791,1731006664340,-500.0,0.0002849,2]
[341578792,1731006664349,-719.7,0.0002849,2]
[341578793,1731006664359,-634.28,0.00028491,2]
[341578794,1731006664369,-500.0,0.00028491,2]
[341578795,1731006664379,-500.0,0.00028491,2]
[341578796,1731006664389,-619.42,0.00028491,2]
[341578797,1731006664399,-500.0,0.00028491,2]
[341578798,1731006664409,-500.0,0.00028491,2]
[341578799,1731006664419,-500.0,0.00028491,2]
[341578800,1731006664429,-500.0,0.00028491,2]
[341578801,1731006664439,-500.0,0.00028491,2]
[341578802,1731006664449,-500.0,0.00028491,2]
[341578803,1731006664458,-500.0,0.00028491,2]
[341578804,1731006664468,-500.0,0.00028491,2]
[341578805,1731006664478,-500.0,0.00028491,2]
[341578806,1731006664488,-666.11,0.00028491,2]
[341578807,1731006664498,-500.0,0.00028491,2]
[341578808,1731006664508,-500.0,0.00028491,2]
[341578809,1731006664518,-500.0,0.00028491,2]
[341578810,1731006664528,-500.0,0.00028491,2]
[341578811,1731006664541,-500.0,0.00028491,2]
[341578812,1731006664551,-500.0,0.00028491,2]
[341578813,1731006664561,-500.0,0.00028491,2]
[341578814,1731006664579,-500.0,0.00028491,2]
[341578815,1731006664590,-500.0,0.00028491,2]
[341578816,1731006664600,-500.0,0.00028491,2]
[341578817,1731006664609,-500.0,0.00028491,2]
[341578818,1731006664618,-684.31,0.00028491,2]
[341578819,1731006664628,-683.37,0.00028491,2]
[341578820,1731006664638,-1140.84,0.00028491,2]
[341578821,1731006664647,-500.0,0.00028491,2]
[341578822,1731006664656,-500.0,0.00028491,2]
[341578823,1731006664666,-500.0,0.00028491,2]
[341578824,1731006664676,-500.0,0.00028491,2]
[341578825,1731006664685,-500.0,0.00028491,2]
[341578826,1731006664695,-594.1,0.00028491,2]
[341578827,1731006664705,-774.5,0.00028491,2]
[341578828,1731006664716,-500.0,0.00028491,2]
[341578829,1731006664726,-500.0,0.00028491,2]
[341578830,1731006664736,-500.0,0.00028491,2]
[341578831,1731006664745,-568.18,0.00028491,2]
[341578832,1731006664755,-514.39,0.00028491,2]
[341578833,1731006664764,-500.0,0.00028491,2]
[341578834,1731006664773,-437.31866287,0.00028491,2]
[341578835,1731006664784,-467.924238,0.00028491,2]
[341578836,1731006664794,-500.0,0.00028491,2]
[341578837,1731006664803,-500.0,0.00028491,2]
[341578838,1731006664812,-154.39181466,0.00028491,2]
[341578839,1731006664822,-500.0,0.00028491,2]
[341578840,1731006664831,-500.0,0.00028491,2]
[341578841,1731006664840,-1732.62,0.00028491,2]
[341578842,1731006664849,-500.0,0.00028491,2]
[341578843,1731006664858,-1366.43,0.00028491,2]
[341578844,1731006664867,-500.0,0.00028491,2]
[341578845,1731006664877,-500.0,0.00028491,2]
[341578846,1731006664886,-500.0,0.00028491,2]
[341578847,1731006664895,-625.64,0.00028491,2]
[341578848,1731006664905,-500.0,0.00028491,2]
[341578849,1731006664914,-219.79155512,0.00028491,2]
[341578850,1731006664923,-737.26,0.00028491,2]
[341578851,1731006664933,-589.04,0.00028491,2]
[341578852,1731006664942,-500.0,0.00028491,2]
[341578853,1731006664951,-500.0,0.00028491,2]
[341578854,1731006664961,-500.0,0.00028491,2]
[341578855,1731006664970,-500.0,0.00028491,2]
[341578856,1731006664979,-500.0,0.00028491,2]
[341578857,1731006664988,-500.0,0.00028491,2]
[341578858,1731006664997,-500.0,0.00028491,2]
[341578859,1731006665007,-768.44,0.00028491,2]
[341578860,1731006665016,-500.0,0.00028491,2]
[341578861,1731006665025,-500.0,0.00028491,2]
[341578862,1731006665037,-500.0,0.00028491,2]
[341578863,1731006665046,-500.0,0.00028491,2]
[341578864,1731006665055,-500.0,0.00028491,2]
[341578865,1731006665065,-914.32,0.00028491,2]
[341578866,1731006665074,-547.53,0.00028491,2]
[341578867,1731006665083,-500.0,0.00028491,2]
[341578868,1731006665092,-500.0,0.00028491,2]
[341578869,1731006665102,-408.391294,0.00028491,7]
[341578870,1731006665111,-408.391294,0.00028491,7]
[341578871,1731006665120,-151.0,0.00028491,7]
[341578872,1731006665130,-858.2509,0.00028491,7]
[341578873,1731006665140,-858.2509,0.00028491,7]
[341578874,1731006665149,-177.626265,0.00028491,7]
[341578875,1731006665159,-151.0,0.00028491,7]
[341578876,1731006665168,-177.626265,0.00028491,7]
[341578877,1731006665177,-152.198966,0.00028491,7]
[341578878,1731006665187,-151.0,0.00028491,7]
[341578879,1731006665196,-540.00431,0.00028491,7]
[341578880,1731006665205,-540.00431,0.00028491,7]
[341578881,1731006665215,-151.0,0.00028491,7]
[341578882,1731006665225,-538.507583,0.00028491,7]
[341578883,1731006665234,-538.507583,0.00028491,7]
[341578884,1731006665243,-500.0,0.00028492,2]
[341578885,1731006665252,-151.0,0.00028493,7]
[341578886,1731006665262,-151.0,0.00028493,7]
[341578887,1731006665271,-279.952967,0.00028493,7]
[341578888,1731006665280,-279.952967,0.00028493,7]
[341578889,1731006665291,-157.615888,0.00028493,7]
[341578890,1731006665300,-4081.0,0.00028493,120]
[341578891,1731006665309,-500.0,0.00028542,2]
[341578892,1731006665319,-151.0,0.00028545,7]
[341578893,1731006665328,-151.0,0.00028545,7]
[341578894,1731006665337,-279.952967,0.00028545,7]
[341578895,1731006665347,-279.952967,0.00028545,7]
[341578896,1731006665356,-500.0,0.00028545,2]
[341578897,1731006665366,-198.473013,0.00028545,7]
[341578898,1731006665373,-198.473013,0.00028545,7]
[341578899,1731006665382,-500.0,0.00028545,2]
[341578900,1731006665391,-500.0,0.00028545,2]
[341578901,1731006665401,-500.0,0.00028545,2]
[341578902,1731006665410,-500.0,0.00028545,2]
[341578903,1731006665419,-752.59,0.00028545,2]
[341578904,1731006665428,-1964.6,0.00028545,2]
[341578905,1731006665438,-3277.23,0.00028545,2]
[341578906,1731006665447,-874.54,0.00028545,2]
[341578907,1731006665456,-500.0,0.00028545,2]
[341578908,1731006665466,-500.0,0.00028545,2]
[341578909,1731006665475,-500.0,0.00028545,2]
[341578910,1731006665484,-1066.81,0.00028545,2]
[341578911,1731006665574,-754.13,0.00028545,2]
[341578912,1731006665584,-500.0,0.00028545,2]
[341578913,1731006665594,-500.0,0.00028545,2]
[341578914,1731006665603,-697.97,0.00028545,2]
[341578915,1731006665614,-743.72,0.00028545,2]
[341578916,1731006665623,-500.0,0.00028545,2]
[341578917,1731006665632,-500.0,0.00028545,2]
[341578918,1731006665641,-873.13,0.00028545,2]
[341578919,1731006665652,-1684.47,0.00028545,2]
[341578920,1731006665661,-152.160297,0.00028545,7]
[341578921,1731006665670,-151.0,0.00028545,7]
[341578922,1731006665679,-1501.89,0.00028545,2]
[341578923,1731006665688,-1855.13,0.00028545,2]
[341578924,1731006665697,-1577.23,0.00028545,2]
[341578925,1731006665706,-500.0,0.00028545,2]
[341578926,1731006665716,-1030.59,0.00028545,2]
[341578927,1731006665726,-496.246228,0.00028545,7]
[341578928,1731006665735,-1130.13,0.00028545,2]
[341578929,1731006665744,-496.246228,0.00028545,7]
[341578930,1731006665753,-704.45,0.00028545,2]
[341578931,1731006665763,-190.612709,0.00028545,7]
[341578932,1731006665772,-190.612709,0.00028545,7]
[341578933,1731006665781,-920.53,0.00028545,2]
[341578934,1731006665794,-1276.51,0.00028545,2]
[341578935,1731006665803,-151.0,0.00028545,7]
[341578936,1731006665812,-163.279712,0.00028545,7]
[341578937,1731006665820,-1518.09,0.00028545,2]
[341578938,1731006665829,-3010.52,0.00028545,2]
[341578939,1731006665839,-151.0,0.00028545,7]
[341578940,1731006665848,-151.0,0.00028545,7]
[341578941,1731006665857,-2199.01,0.00028545,2]
[341578942,1731006665867,-1048.53,0.00028545,2]
[341578943,1731006665875,-500.0,0.00028545,2]
[341578944,1731006665884,-1121.9,0.00028545,2]
[341578945,1731006665893,-500.0,0.00028545,2]
[341578946,1731006665902,-1772.55,0.00028545,2]
[341578947,1731006665911,-715.44,0.00028545,2]
[341578948,1731006665921,-739.36409887,0.00028545,2]
[341578949,1731006665930,-722.96,0.00028545,2]
[341578950,1731006665939,-2326.17,0.00028545,2]
[341578951,1731006665949,-500.0,0.00028545,2]
[341578952,1731006665958,-500.0,0.00028545,2]
[341578953,1731006665967,-901.99,0.00028545,2]
[341578954,1731006665976,-500.0,0.00028545,2]
[341578955,1731006665985,-1466.36,0.00028545,2]
[341578956,1731006665994,-1292.34,0.00028545,2]
[341578957,1731006666004,-500.0,0.00028545,2]
[341578958,1731006666013,-825.64,0.00028545,2]
[341578959,1731006666022,-665.37,0.00028545,2]
[341578960,1731006666032,-1050.72,0.00028545,2]
[341578961,1731006666042,-355.99444352,0.00028552,2]
[341578962,1731006666052,-776.25940434,0.00028561,2]
[341578963,1731006666062,-169.76846182,0.00028562,2]
[341578964,1731006666071,-150.0,0.00028627,30]
[341578965,1731006666081,-208.0,0.0002867,30]
[341578966,1731006666090,-151.0,0.00028719,7]
[341578967,1731006666099,-151.0,0.00028719,7]
[341578968,1731006666108,-563.85950918,0.00028723,2]
[341578969,1731006666117,-500.0,0.00028762,2]
[341578970,1731006666126,-500.0,0.00028762,2]
[341578971,1731006666136,-500.0,0.00028762,2]
[341578972,1731006666145,-6528.81,0.00028762,2]
[341578973,1731006666154,-504.3,0.00028762,2]
[341578974,1731006666163,-977.61,0.00028762,2]
[341578975,1731006666172,-13883.55,0.00028762,2]
[341578976,1731006666181,-500.0,0.00028762,2]
[341578977,1731006666191,-865.8,0.00028762,2]
[341578978,1731006666200,-1147.5,0.00028762,2]
[341578979,1731006666209,-500.0,0.00028762,2]